Cogmind - Beta 12 X1 @@@ ROGUE MODE // 2022.07.07 @ 23:41:50 Player: Plexion Result: Escaped! Performance ------------- Evolutions (9) 4500 Regions Visited (25) 5000 Robots Destroyed (299) 1495 Value Destroyed (20655) 20655 Prototype IDs (33) 660 Alien Tech Used (0) 0 Bonus (14560) 14560 TOTAL SCORE: 46870 Bonus ------- High Alert Combat Kills 1728 Follower Combat Kills 5125 Entered Garrisons 1800 Used RIF Installer 4500 Aligned with FarCom 300 Win 3000 Friendly Fire -1893 Cogmind --------- Core Integrity 1143/1600 Matter 191/300 Energy 425/440 System Corruption 16% Temperature Cool (10) Movement Walking (120) Location To Epsilon Eridani Parts ------- > --- POWER (2) -------- Light Quantum Reactor Reinforced Quantum Reactor > --- PROPULSION (5) --- Myomer Leg Myomer Leg Myomer Leg Centrium Leg Centrium Leg > --- UTILITY (14) ----- High-capacity Storage Unit Advanced Targeting Computer Advanced Target Analyzer Experimental Target Analyzer Centrium Medium Armor Plating Graphene Brace Relay Coupler [Sentry] (30) Relay Coupler [Sentry] (27) Relay Coupler [Hunter] (10) Relay Coupler [Behemoth] (16) Relay Coupler [Proto] (16) Relay Coupler [Proto] (16) Relay Coupler [Proto] (16) Relay Coupler [Proto] (16) > --- WEAPON (4) ------- Compact HERF Cannon Multirail Field Lobotomy Kit Enhanced Force Lance > --- INVENTORY (20) --- Light Antimatter Reactor Matter Compressor (250) Peak State ------------ > --- POWER ------------ Light Quantum Reactor Reinforced Quantum Reactor > --- PROPULSION ------- Myomer Leg Myomer Leg Myomer Leg Centrium Leg Centrium Leg > --- UTILITY ---------- High-capacity Storage Unit Advanced Targeting Computer Advanced Target Analyzer Experimental Target Analyzer Centrium Medium Armor Plating Graphene Brace Relay Coupler [Sentry] Relay Coupler [Sentry] Relay Coupler [Hunter] Relay Coupler [Behemoth] Relay Coupler [Proto] Relay Coupler [Proto] Relay Coupler [Proto] Relay Coupler [Proto] > --- WEAPON ----------- Compact HERF Cannon Multirail Field Lobotomy Kit Enhanced Force Lance > --- INVENTORY -------- Light Antimatter Reactor Matter Compressor [Rating: 188] Favorites ----------- Power Light Quantum Reactor Engine Heavy Deuterium Engine Power Core Nuclear Core Reactor Light Quantum Reactor Propulsion Light Treads Treads Light Treads Leg Myomer Leg Utility High-capacity Storage Unit Device Advanced Heat Sink Storage High-capacity Storage Unit Processor Advanced Targeting Computer Hackware Relay Coupler [Sentry] Protection Improved Light Armor Plating Weapon Enhanced Force Lance Energy Gun Wave Gun Energy Cannon Compact HERF Cannon Ballistic Gun Railgun Ballistic Cannon Hypervelocity Mass Driver Launcher Ragnarok Missile Launcher Special Weapon Advanced Remote Datajack Slashing Weapon Katana Piercing Weapon Enhanced Force Lance Build | -11 -10 -10 -10 -9 -8 -8 -8 -7 -7 -6 -6 -6 -6 -5 -5 -5 -5 -4 -3 -3 -2 -2 -1 -1 -1 ------- Run | Scr Mat Min Exi Min Mat Gar Mat Fac Gar Fac Gar Fac Gar Fac Gar Fac Gar Fac Res Gar Res Gar Acc Gar Acc Slots Evolved 18 | . . . . . 4 . . 2 . 2 . . . 2 . . . 2 2 . 2 . 2 . . Power 1 | . . . . . . . . . . . . . . . . . . 1 . . . . . . . Propulsion 3 | . . . . . 1 . . 1 . . . . . . . . . . . . 1 . . . . Utility 12 | . . . . . 2 . . 1 . 2 . . . 2 . . . 1 2 . 1 . 1 . . Weapon 2 | . . . . . 1 . . . . . . . . . . . . . . . . . 1 . . Parts Attached 427 | 6 4 . 2 2 23 12 29 6 18 36 15 . 14 12 37 32 22 5 6 24 1 34 23 32 32 Power 30 | 1 . . . 1 1 . 1 1 1 1 . . . 1 3 . 1 3 . 2 . 7 3 1 2 Engine 8 | 1 . . . 1 1 . 1 1 . 1 . . . . 2 . . . . . . . . . . Core 2 | . . . . . . . . . 1 . . . . 1 . . . . . . . . . . . Reactor 20 | . . . . . . . . . . . . . . . 1 . 1 3 . 2 . 7 3 1 2 Propulsion 78 | 2 . . . 1 3 2 6 1 1 7 2 . 2 3 7 11 . . 2 5 1 8 5 2 7 Treads 40 | 2 . . . 1 3 2 6 1 1 7 2 . 2 3 5 3 . . 2 . . . . . . Leg 38 | . . . . . . . . . . . . . . . 2 8 . . . 5 1 8 5 2 7 Wheel . | . . . . . . . . . . . . . . . . . . . . . . . . . . Hover . | . . . . . . . . . . . . . . . . . . . . . . . . . . Flight . | . . . . . . . . . . . . . . . . . . . . . . . . . . Utility 152 | 1 3 . . . 6 3 7 3 2 9 5 . 8 4 12 11 11 2 3 14 . 12 11 16 9 Device 32 | . . . . . 2 1 4 1 . 3 . . . 1 4 4 2 . . 3 . 4 . 2 1 Storage 3 | 1 1 . . . 1 . . . . . . . . . . . . . . . . . . . . Processor 8 | . 1 . . . . . 1 . . . . . . . 1 1 1 . . . . . 2 1 . Hackware 62 | . . . . . . . . 1 . 4 3 . 5 2 4 3 3 . . 11 . 6 6 8 6 Protection 47 | . 1 . . . 3 2 2 1 2 2 2 . 3 1 3 3 5 2 3 . . 2 3 5 2 Artifact . | . . . . . . . . . . . . . . . . . . . . . . . . . . Weapon 167 | 2 1 . 2 . 13 7 15 1 14 19 8 . 4 4 15 10 10 . 1 3 . 7 4 13 14 Energy Gun 14 | . . . . . 5 4 1 . 3 . . . 1 . . . . . . . . . . . . Energy Cannon 8 | . . . . . 2 . . . . . . . . . 2 . . . 1 1 . . . . 2 Ballistic Gun 37 | 2 . . 1 . 2 . 5 . 4 8 3 . 2 2 6 . . . . . . . . 1 1 Ballistic Cannon 13 | . 1 . 1 . . . . . . . . . . . 2 1 4 . . . . 3 . 1 . Launcher 33 | . . . . . 4 2 4 . 1 5 . . . 1 2 2 1 . . . . . 1 6 4 Special Weapon 32 | . . . . . . . . 1 1 2 2 . 1 1 2 6 2 . . 2 . 3 2 1 6 Impact Weapon . | . . . . . . . . . . . . . . . . . . . . . . . . . . Slashing Weapon 15 | . . . . . . 1 5 . 5 4 . . . . . . . . . . . . . . . Piercing Weapon 15 | . . . . . . . . . . . 3 . . . 1 1 3 . . . . 1 1 4 1 Special Melee Weapon . | . . . . . . . . . . . . . . . . . . . . . . . . . . Unidentified Prototypes 6 | . . . . . 1 . 1 . . . . . . 1 . . . . . . . . 1 1 1 Parts Lost 74 | . . . . 2 4 1 2 . 2 7 3 . 2 1 7 1 5 . 6 7 . 5 2 2 15 Power 7 | . . . . 1 . . 1 . 1 1 . . . . 2 . . . . 1 . . . . . Propulsion 15 | . . . . 1 . . . . 1 3 1 . . . 2 . . . 2 . . 1 . . 4 Utility 31 | . . . . . 1 . . . . 1 1 . 1 . 3 1 1 . 3 5 . 4 2 2 6 Weapon 21 | . . . . . 3 1 1 . . 2 1 . 1 1 . . 4 . 1 1 . . . . 5 Highest Loss Streak 5 | . . . . 2 1 1 2 . 2 5 3 . 1 1 2 1 2 . 5 4 . 2 1 1 5 To Critical Strikes 2 | . . . . . . . . . . 1 . . . . . . . . 1 . . . . . . Average Slot Usage (%) 91 | . 98 100 71 97 94 94 99 85 100 98 92 93 91 92 96 94 87 89 85 84 91 90 89 85 83 Engine 3 | . 14 14 14 13 9 9 8 7 2 . 6 6 6 1 1 . . . . . . . . . . Reactor 3 | . . . . . . . . . . . . . . . 2 5 5 10 9 8 4 7 8 8 7 Treads 16 | . 28 28 28 27 23 27 26 30 30 26 25 26 25 23 22 8 11 10 9 7 . . . . . Leg 5 | . . . . . . . . . . . . . . . . 9 . . . 3 21 21 20 19 19 Device 9 | . . . . . 9 8 8 . 7 13 6 6 6 8 11 15 11 10 9 15 17 11 6 7 8 Storage 6 | . 14 14 14 14 9 9 9 7 7 6 6 6 6 5 5 5 5 5 4 4 4 4 4 4 4 Processor 8 | . 5 14 14 14 9 9 9 7 7 6 6 6 4 . 1 5 11 10 9 9 8 8 8 12 12 Hackware 10 | . . . . . . . . . 7 9 7 6 10 17 16 11 10 10 6 17 21 23 22 13 13 Protection 8 | . 6 . . . 9 9 9 7 7 7 12 13 9 11 12 11 11 15 21 2 . 2 8 8 5 Energy Gun 3 | . . . . . 7 9 17 7 11 11 1 . . . . . . . . . . . . . . Energy Cannon 1 | . . . . . 5 7 . . . . . . . . . . . . . 3 4 . . . 2 Ballistic Gun 3 | . 26 14 . 14 8 2 3 14 5 3 9 6 4 5 7 . . . . . . . . . . Ballistic Cannon 2 | . 1 14 . 14 3 . . . . . . . . . 2 11 8 10 7 . . 3 4 3 1 Special Weapon 2 | . . . . . . . . . . 1 5 6 6 5 3 3 2 . . 3 4 3 4 3 1 Piercing Weapon 1 | . . . . . . . . . . . 1 6 6 5 . . 4 5 4 4 4 1 4 2 3 Naked Turns . | . . . . . . . . . . . . . . . . . . . . . . . . . . Heaviest Build 182 | 10 27 27 27 27 68 67 76 87 73 84 93 90 90 90 107 107 103 126 133 118 77 121 136 182 162 Greatest Support 141 | 40 40 40 40 40 60 60 62 82 82 112 112 106 106 116 118 140 140 140 140 140 100 125 141 141 141 Greatest Overweight (x) 1 | . . . . . 1 1 1 1 . 1 1 . 1 . 1 1 . . . 1 . 1 1 1 1 Average Overweight (x) . | . . . . . . . . . . . . . . . . . . . . . . . . . . Largest Inventory Capacity 20 | 8 15 15 15 15 20 20 20 20 20 20 20 20 20 20 20 20 20 20 20 20 20 20 20 20 20 Average Capacity 19 | 6 10 15 15 15 19 20 20 20 20 20 20 20 20 20 20 20 20 20 20 20 20 20 20 20 20 Most Carried 20 | 2 5 7 9 7 7 16 20 19 20 20 16 13 17 17 20 20 20 19 19 20 15 20 20 20 20 Average Carried 15 | . 2 6 8 5 4 8 18 17 18 17 11 13 15 15 17 19 18 18 16 16 15 19 18 19 15 Final Capacity 20 | 8 15 15 15 15 20 20 20 20 20 20 20 20 20 20 20 20 20 20 20 20 20 20 20 20 20 Final Carried 20 | 2 5 6 7 5 5 15 20 17 19 13 13 13 16 17 20 20 20 19 11 16 15 20 20 19 2 Class Distribution -------------------- 44% | Botlord-Mutant 16% | Scavenger-Mutant 14% | Bothacker-Mutant 10% | Mutant 5% | Scavenger-Skirmisher 3% | Skirmisher Dominant Class ---------------- Mutant | -10/Materials Mutant | -10/Mines Mutant | -10/Exiles Mutant | -9/Mines Scavenger-Skirmisher | -8/Materials Scavenger-Mutant | -8/Garrison Scavenger-Mutant | -8/Materials Scavenger-Skirmisher | -7/Factory Bothacker-Mutant | -7/Garrison Bothacker-Mutant | -6/Factory Bothacker-Mutant | -6/Garrison Bothacker-Mutant | -6/Factory Bothacker-Mutant | -6/Garrison Botlord-Mutant | -5/Factory Botlord-Mutant | -5/Garrison Botlord-Mutant | -5/Factory Botlord-Mutant | -5/Garrison Scavenger-Mutant | -4/Factory Scavenger-Mutant | -3/Research Botlord-Mutant | -3/Garrison Botlord-Mutant | -2/Research Botlord-Mutant | -2/Garrison Botlord-Mutant | -1/Access Botlord-Mutant | -1/Garrison Botlord-Mutant | -1/Access Resources | -11 -10 -10 -10 -9 -8 -8 -8 -7 -7 -6 -6 -6 -6 -5 -5 -5 -5 -4 -3 -3 -2 -2 -1 -1 -1 ----------- Run | Scr Mat Min Exi Min Mat Gar Mat Fac Gar Fac Gar Fac Gar Fac Gar Fac Gar Fac Res Gar Res Gar Acc Gar Acc Matter Collected 14329 | 252 38 92 29 120 406 212 468 91 298 797 444 . 278 67 1118 1264 986 192 747 456 . 1099 1653 2052 1170 Remotely . | . . . . . . . . . . . . . . . . . . . . . . . . . . Salvage Created 12759 | . 95 74 . 61 766 341 1038 124 328 1003 722 . 55 . 1118 1065 618 282 776 1201 . 598 623 651 1220 Parts 651 | . 4 4 . 1 46 14 67 8 27 72 25 . 12 . 48 53 29 14 36 62 . 29 30 20 50 Haulers Intercepted 4 | . . . . . 1 . 3 . . . . . . . . . . . . . . . . . . Recyclers Shooed 5 | . . 1 . . 1 . 1 1 . . . . . . . 1 . . . . . . . . . Parts Field Recycled . | . . . . . . . . . . . . . . . . . . . . . . . . . . Retrieved Matter . | . . . . . . . . . . . . . . . . . . . . . . . . . . Parts Self-Destructed . | . . . . . . . . . . . . . . . . . . . . . . . . . . Prevented . | . . . . . . . . . . . . . . . . . . . . . . . . . . Kills | -11 -10 -10 -10 -9 -8 -8 -8 -7 -7 -6 -6 -6 -6 -5 -5 -5 -5 -4 -3 -3 -2 -2 -1 -1 -1 ------- Run | Scr Mat Min Exi Min Mat Gar Mat Fac Gar Fac Gar Fac Gar Fac Gar Fac Gar Fac Res Gar Res Gar Acc Gar Acc Combat Hostiles Destroyed 255 | . 2 2 . 2 20 8 19 2 10 24 12 . 3 . 19 17 9 4 12 16 . 9 9 31 25 Melee 20 | . . . . . . . . . 1 . 2 . 1 . . . . . . 11 . 4 . . 1 Guns 70 | . 2 1 . 2 8 2 10 2 5 12 10 . 2 . 14 . . . . . . . . . . Cannons 73 | . . 1 . . 4 2 . . . . . . . . . 11 8 4 11 3 . 5 9 12 3 AOE 83 | . . . . . 8 3 9 . 4 12 . . . . 5 6 . . . . . . . 19 17 Classes Destroyed 19 | . 1 . . . 7 2 4 1 1 . . . 1 . 2 . . . . . . . . . . Worker 3 | . . . . . 3 . . . . . . . . . . . . . . . . . . . . Builder 17 | . . . . . 1 . 3 . . 4 . . . . . 2 . . 2 . . . 2 . 3 Tunneler 3 | . . . . . 1 . . . . 1 . . . . . . . . . . . . . . 1 Hauler 4 | . . . . . 1 . 3 . . . . . . . . . . . . . . . . . . Recycler 6 | . . . . . . . 2 . . . . . . . . 2 . . . . . . 1 . 1 Watcher 6 | . . . . . . . 2 1 . . . . . . 1 . . . . . . . . . 2 Swarmer 61 | . . . . . 3 . 6 . 4 4 . . 1 . 8 7 . . . . . 1 . 17 10 Cutter 2 | . . . . . . . . . . . . . 2 . . . . . . . . . . . . Grunt 100 | . 2 2 . 2 9 3 7 . . 13 12 . . . 6 1 1 4 10 9 . 4 1 7 7 Brawler 6 | . . . . . . 1 2 . . 1 . . . . . . . . . . . . 1 1 . Duelist 4 | . . . . . 2 1 . . . 1 . . . . . . . . . . . . . . . Protector 3 | . . . . . . . 1 . . . . . . . 1 . 1 . . . . . . . . Sentry 27 | . . . . . 6 2 2 . 1 2 . . . . 2 2 4 . . 2 . 1 . 2 1 Demolisher 2 | . . . . . . . . . . . . . . . 1 . 1 . . . . . . . . Specialist 2 | . . . . . . . . . 2 . . . . . . . . . . . . . . . . Hunter 15 | . . . . . . 1 . . . 1 . . . . 1 3 3 . 2 . . . 1 1 2 Programmer 36 | . . . . . . . . 2 3 3 . . . . 1 4 . . . 5 . 3 7 3 5 Heavy 1 | . . . . . . . 1 . . . . . . . . . . . . . . . . . . Behemoth 1 | . . . . . . . . . . . . . . . 1 . . . . . . . . . . Best Kill Streak 10 | . 2 1 . 1 6 3 5 2 4 10 8 . 2 . 5 7 4 4 7 3 . 3 2 6 8 Combat Bots Only 9 | . 2 1 . 1 3 3 5 2 4 9 8 . 2 . 5 6 4 4 6 3 . 3 2 6 6 Max Kills in Single Turn 4 | . 1 1 . 1 4 2 4 1 3 3 1 . 1 . 3 3 1 2 1 1 . 1 1 4 4 Gunslinging . | . . . . . . . . . . . . . . . . . . . . . . . . . . Exploded 4 | . . . . . 3 2 4 . 3 3 . . . . 3 3 . . . . . . . 4 4 Melee 1 | . . . . . . . . . 1 . 1 . 1 . . . . . . 1 . 1 . . 1 Uniques/NPCs Destroyed . | . . . . . . . . . . . . . . . . . . . . . . . . . . Combat | -11 -10 -10 -10 -9 -8 -8 -8 -7 -7 -6 -6 -6 -6 -5 -5 -5 -5 -4 -3 -3 -2 -2 -1 -1 -1 -------- Run | Scr Mat Min Exi Min Mat Gar Mat Fac Gar Fac Gar Fac Gar Fac Gar Fac Gar Fac Res Gar Res Gar Acc Gar Acc Damage Taken 22494 | . 222 170 . 334 931 168 774 223 406 1850 702 . 568 134 2390 1031 1175 345 985 1906 . 1158 830 1926 4266 Core 1783 | . 46 39 . 41 161 8 133 16 69 123 40 . 61 . 135 17 63 . 64 173 . 137 18 63 376 Absorbed by Shields 400 | . . . . . . . . . . . . . . . . . 95 . . 94 . 73 . 138 . Redirected to Shielding 12 | . 10 . . . . 2 . . . . . . . . . . . . . . . . . . . Core Remaining (%) 77 | 100 . . . 49 . . 45 . 87 . . . 73 . . . 78 100 . 81 . 90 . . 71 Volleys Fired 831 | . 10 11 . 16 49 23 50 7 12 63 30 . 25 7 99 57 33 9 39 36 . 52 78 81 44 Largest 3 | . 2 2 . 2 3 3 3 3 3 3 2 . 1 1 2 2 2 2 2 1 . 1 1 1 2 Hottest 204 | . 40 55 . 55 154 154 197 149 204 204 123 . 81 33 127 132 132 132 132 94 . 75 83 83 94 Shots Fired 1292 | . 21 24 . 32 116 47 114 19 26 120 49 . 25 7 169 92 48 18 68 36 . 52 78 83 48 Gun 574 | . 21 11 . 16 77 24 107 18 23 87 38 . 12 3 137 . . . . . . . . . . Cannon 409 | . . 13 . 16 29 18 . . . . . . . . 4 70 33 18 68 12 . 23 34 45 26 Launcher 81 | . . . . . 10 5 7 . 2 11 . . . . 5 4 4 . . . . . . 18 15 Special 228 | . . . . . . . . 1 1 22 11 . 13 4 23 18 11 . . 24 . 29 44 20 7 Kinetic 690 | . 21 24 . 32 41 7 26 12 11 42 36 . 8 3 137 70 33 18 62 . . 23 34 45 5 Thermal 250 | . . . . . 65 35 81 6 12 45 2 . 4 . . . . . . . . . . . . Explosive 68 | . . . . . 10 5 7 . 2 11 . . . . . . . . . . . . . 18 15 Electromagnetic 56 | . . . . . . . . . . . . . . . 9 4 4 . 6 12 . . . . 21 Robot Hit Streak 35 | . 7 7 . 7 27 15 14 9 13 12 12 . 12 2 20 11 13 3 10 15 . 14 24 35 7 Robot Miss Streak 5 | . 3 2 . 3 3 2 2 1 2 4 2 . 2 2 4 5 2 3 2 2 . 5 4 2 3 Penetration Max 2 | . . . . . . . . 1 . 1 2 . . . 1 1 1 1 1 . . . . 1 . Secondary Targets 9 | . 1 . . . . . . . 1 2 2 . . . 3 . . . . . . . . . . Max Gunslinging Chain 1 | . 1 . . . . . . . 1 1 1 . . . 1 . . . . . . . . . . Capacitor 20 | . . . . . . . . . . . . . . . . . . . . . . . . . 20 Shots Hit Robots 930 | . 13 17 . 24 89 25 76 13 24 72 33 . 20 4 106 53 31 9 48 65 . 48 54 66 40 Core Hits 472 | . 7 5 . 5 55 16 41 4 16 61 23 . 3 1 47 28 15 5 20 25 . 11 13 34 37 Critical Kills 41 | . . . . 1 . 1 . . . 1 . . . . 2 12 9 4 11 . . . . . . Critical Parts Destroyed 52 | . . . . . . . . . . . . . . 1 3 12 8 4 24 . . . . . . Critical Strikes 149 | . . . . 1 2 2 2 . 3 2 1 . . 1 5 25 21 8 35 14 . 3 5 15 4 Burn 8 | . . . . . 2 1 2 . 2 1 . . . . . . . . . . . . . . . Meltdown 1 | . . . . . . 1 . . . . . . . . . . . . . . . . . . . Destroy 97 | . . . . 1 . . . . . 1 . . . 1 5 25 21 8 35 . . . . . . Blast 21 | . . . . . . . . . . . . . . . . . . . . . . . 5 15 1 Corrupt 2 | . . . . . . . . . . . . . . . . . . . . 1 . . . . 1 Sever 1 | . . . . . . . . . 1 . . . . . . . . . . . . . . . . Impale 19 | . . . . . . . . . . . 1 . . . . . . . . 13 . 3 . . 2 Melee Attacks 235 | . . . . . . 3 17 . 17 8 17 1 25 3 3 2 6 13 1 49 3 15 8 5 39 Impact . | . . . . . . . . . . . . . . . . . . . . . . . . . . Slashing 45 | . . . . . . 3 17 . 17 8 . . . . . . . . . . . . . . . Piercing 190 | . . . . . . . . . . . 17 1 25 3 3 2 6 13 1 49 3 15 8 5 39 Sneak Attacks 21 | . . . . . . . 2 . 4 . . . . . . . . . . 11 . 4 . . . Combat Hostiles 16 | . . . . . . . . . 4 . . . . . . . . . . 9 . 3 . . . Follow-up Attacks . | . . . . . . . . . . . . . . . . . . . . . . . . . . Damage Inflicted 37459 | . 128 211 . 292 2532 705 2580 376 1133 3612 1019 . 220 45 2949 1391 812 188 1020 2427 . 1581 1900 7646 4692 Guns 8990 | . 128 93 . 115 762 235 1712 376 534 1479 952 . 192 45 2367 . . . . . . . . . . Cannons 10697 | . . 118 . 177 563 125 . . . . . . . . 91 815 389 188 1020 495 . 941 1900 2902 973 Explosions 14399 | . . . . . 1199 345 710 . 303 2133 . . . . 491 576 371 . . . . . . 4744 3527 Melee 3365 | . . . . . . . 158 . 296 . 67 . 28 . . . 52 . . 1932 . 640 . . 192 Ramming 8 | . . . . . 8 . . . . . . . . . . . . . . . . . . . . Kinetic 14397 | . 128 211 . 292 383 64 333 290 258 675 952 . 111 45 2367 815 389 188 804 . . 941 1900 2902 349 Thermal 4455 | . . . . . 942 296 1379 86 276 1298 . . 81 . . 97 . . . . . . . . . Explosive 12467 | . . . . . 1199 345 710 . 303 1639 . . . . . . . . . . . . . 4744 3527 Electromagnetic 2767 | . . . . . . . . . . . . . . . 582 479 371 . 216 495 . . . . 624 Impact . | . . . . . . . . . . . . . . . . . . . . . . . . . . Slashing 454 | . . . . . . . 158 . 296 . . . . . . . . . . . . . . . . Piercing 2911 | . . . . . . . . . . . 67 . 28 . . . 52 . . 1932 . 640 . . 192 Highest Corruption 16 | . 3 3 3 3 . . 3 . . 5 5 5 6 . 3 6 7 . . 5 . 2 2 4 16 Average Corruption 4 | . 2 3 3 3 . . 2 . . 1 5 5 5 . 2 5 6 . . 3 . 1 1 3 9 Corruption Purged . | . . . . . . . . . . . . . . . . . . . . . . . . . . Corruption Blocked . | . . . . . . . . . . . . . . . . . . . . . . . . . . Effects 286 | . 2 10 7 3 . . 6 . . 10 31 2 20 . 9 25 42 . . 22 . 10 6 35 46 Message Errors 53 | . . . . 1 . . . . . 3 5 . 4 . 2 9 8 . . 3 . 1 1 5 11 Matter Fused 76 | . . 2 2 1 . . . . . 1 11 1 6 . 3 8 13 . . 6 . 2 1 7 12 Heat Flow Errors 36 | . . 1 1 . . . 2 . . 2 5 . 3 . 1 2 1 . . 3 . 2 2 7 4 Energy Discharges 35 | . . 3 2 1 . . 1 . . 1 2 . 2 . 3 1 7 . . 3 . 2 . 4 3 Parts Rejected 11 | . . . . . . . . . . . 3 . 1 . . 2 1 . . . . . 1 1 2 Data Loss (minor) 41 | . 1 1 1 . . . 2 . . 2 3 . 3 . . 3 7 . . 3 . 2 1 4 8 Data Loss (major) 11 | . . . 1 . . . 1 . . . . . . . . . 4 . . 2 . . . 3 . Misfires 11 | . 1 2 . . . . . . . 1 1 . . . . . . . . . . . . 3 3 Alerts 11 | . . 1 . . . . . . . . 1 1 1 . . . 1 . . 2 . 1 . . 3 Weapon Failures 1 | . . . . . . . . . . . . . . . . . . . . . . . . 1 . Overload Shots . | . . . . . . . . . . . . . . . . . . . . . . . . . . Overflow Damage 1981 | . . . . . 2 . 2 . 26 56 . . . . 10 8 . . . 138 . 60 197 879 603 Projectiles 785 | . . . . . . . . . . . . . . . . . . . . . . 32 197 490 66 Explosions 943 | . . . . . 2 . 2 . . 56 . . . . 10 8 . . . . . . . 389 476 Melee 253 | . . . . . . . . . 26 . . . . . . . . . . 138 . 28 . . 61 Knockbacks 67 | . . 3 . 3 . . . . . . . . . . . 4 2 6 12 . . 6 9 20 2 Impact . | . . . . . . . . . . . . . . . . . . . . . . . . . . Kinetic 57 | . . 3 . 3 . . . . . . . . . . . 4 2 4 10 . . 4 8 17 2 Secondary 10 | . . . . . . . . . . . . . . . . . . 2 2 . . 2 1 3 . Self-Inflicted Damage 462 | . . . . . 57 . . . 46 15 . . . . 30 . 10 . . . . . . . 304 Shots 10 | . . . . . 3 . . . 1 1 . . . . 1 . 1 . . . . . . . 3 Rammed 2 | . . . . . 1 . . . . . . . . . . 1 . . . . . . . . . Targets Rammed 2 | . . . . . 1 . . . . . . . . . . 1 . . . . . . . . . Kicked . | . . . . . . . . . . . . . . . . . . . . . . . . . . Crushed . | . . . . . . . . . . . . . . . . . . . . . . . . . . Highest Temperature 480 | . 55 103 226 129 238 120 417 480 96 348 221 . 199 . 124 151 60 88 67 134 . 176 217 327 479 Average Temperature 92 | . 24 47 114 66 60 45 127 234 42 96 74 . 74 . 37 83 13 50 23 32 . 89 97 84 148 Received Heat Transfer 3556 | . 126 102 . 192 396 27 144 48 . 612 315 . 66 12 288 36 116 181 181 219 . 90 36 162 207 Effects 12 | . . . 1 . . . 1 2 . 1 . . . . . . . . . . . . . 2 5 Shutdowns 4 | . . . . . . . . 1 . . . . . . . . . . . . . . . . 3 Energy Bleed 4 | . . . 1 . . . 1 . . . . . . . . . . . . . . . . 2 . Interference 2 | . . . . . . . . . . . . . . . . . . . . . . . . . 2 Matter Decay 1 | . . . . . . . . . . 1 . . . . . . . . . . . . . . . Damage (major) 1 | . . . . . . . . 1 . . . . . . . . . . . . . . . . . Siege Activations 1 | . . . . . . . . . . . . . . . . . 1 . . . . . . . . Total Turns 3 | . . . . . . . . . . . . . . . . . 3 . . . . . . . . Longest Duration 3 | . . . . . . . . . . . . . . . . . 3 . . . . . . . . Robots Corrupted 8 | . . . . . . . . . . . . . . . . . 1 . 1 2 . . . . 4 Combat Hostiles 8 | . . . . . . . . . . . . . . . . . 1 . 1 2 . . . . 4 Parts Fried 18 | . . . . . . . . . . . . . . . . 3 3 . 4 2 . . . . 6 Impact Corruptions . | . . . . . . . . . . . . . . . . . . . . . . . . . . Robots Melted 1 | . . . . . . 1 . . . . . . . . . . . . . . . . . . . Combat Hostiles 1 | . . . . . . 1 . . . . . . . . . . . . . . . . . . . Parts Melted 13 | . . . . . 2 2 3 . 1 3 1 . . . . . . . . 1 . . . . . Heat Transferred 6964 | . . . . . 1990 664 2257 111 359 1410 . . 73 . . 100 . . . . . . . . . Parts Sabotaged . | . . . . . . . . . . . . . . . . . . . . . . . . . . Parts Stolen . | . . . . . . . . . . . . . . . . . . . . . . . . . . Parts Stripped . | . . . . . . . . . . . . . . . . . . . . . . . . . . Power Chain Reactions 1 | . . . . . . . . . . . . . . . . 1 . . . . . . . . . Missiles Intercepted 15 | . . . . . . . . . . . . . . . 10 . 5 . . . . . . . . Alert | -11 -10 -10 -10 -9 -8 -8 -8 -7 -7 -6 -6 -6 -6 -5 -5 -5 -5 -4 -3 -3 -2 -2 -1 -1 -1 ------- Run | Scr Mat Min Exi Min Mat Gar Mat Fac Gar Fac Gar Fac Gar Fac Gar Fac Gar Fac Res Gar Res Gar Acc Gar Acc Peak Influence 967 | . 70 107 . 50 297 660 594 368 745 648 656 345 879 461 694 488 796 467 337 735 425 650 398 872 967 Initial 523 | . . 27 . . 19 186 321 270 257 390 141 344 241 461 200 364 341 417 143 252 407 318 389 36 523 Average 398 | . 38 94 . 37 78 403 440 302 559 294 446 344 616 378 434 341 517 422 209 509 414 511 70 530 690 Maximum Alert Level 3 | . . . . . 1 2 2 1 3 2 2 1 3 2 2 2 3 2 1 3 2 2 1 3 3 Low Security (%) 21 | 100 100 100 . 100 86 9 . . . 31 18 . . . 8 14 . . 48 . . . 91 8 . Level 1 28 | . . . . . 13 41 33 100 22 43 31 100 17 66 24 62 28 17 51 34 . 28 8 24 . Level 2 41 | . . . . . . 48 66 . 57 24 50 . 44 33 66 23 63 82 . 44 100 71 . 32 63 Level 3 8 | . . . . . . . . . 20 . . . 38 . . . 8 . . 21 . . . 34 36 Level 4 . | . . . . . . . . . . . . . . . . . . . . . . . . . . Level 5 . | . . . . . . . . . . . . . . . . . . . . . . . . . . High Security . | . . . . . . . . . . . . . . . . . . . . . . . . . . Max Security . | . . . . . . . . . . . . . . . . . . . . . . . . . . Squads Dispatched 43 | . . . . . 5 . 4 1 . 7 . . . 2 . 5 . 1 2 . . . 5 . 11 Investigation 2 | . . . . . . . . . . . . . . . . 1 . . 1 . . . . . . Extermination 10 | . . . . . . . . . . 3 . . . 1 . 1 . . . . . . 4 . 1 Reinforcement 16 | . . . . . 2 . 3 . . 4 . . . 1 . 3 . 1 . . . . 1 . 1 Assault 4 | . . . . . . . 1 . . . . . . . . . . . . . . . . . 3 Garrison 11 | . . . . . 3 . . 1 . . . . . . . . . . 1 . . . . . 6 Intercept . | . . . . . . . . . . . . . . . . . . . . . . . . . . Searches Triggered . | . . . . . . . . . . . . . . . . . . . . . . . . . . Construction Impeded 8 | . . . . . . . 2 . . 3 . . . 1 . 1 . . . . . . . . 1 Haulers Reinforced 1 | . . . . . . . . . . . . . . . . 1 . . . . . . . . . Active Scanning Responses . | . . . . . . . . . . . . . . . . . . . . . . . . . . Cargo Convoy Interrupts . | . . . . . . . . . . . . . . . . . . . . . . . . . . Alert ID Control Effect 62 | . . . . . . . . . . . . . . . . . . . . 2 . 9 30 10 11 Stealth | -11 -10 -10 -10 -9 -8 -8 -8 -7 -7 -6 -6 -6 -6 -5 -5 -5 -5 -4 -3 -3 -2 -2 -1 -1 -1 --------- Run | Scr Mat Min Exi Min Mat Gar Mat Fac Gar Fac Gar Fac Gar Fac Gar Fac Gar Fac Res Gar Res Gar Acc Gar Acc Distress Signals 27 | . . . . . 4 . 3 . . 2 . . . 1 1 5 . . . . 1 . 4 . 6 Communications Jammed . | . . . . . . . . . . . . . . . . . . . . . . . . . . Distress Signals . | . . . . . . . . . . . . . . . . . . . . . . . . . . Times Spotted 562 | . 3 2 . 2 32 8 33 4 8 40 24 . 27 7 46 37 26 5 14 34 1 46 57 52 54 Peak Tracking Total 12 | . 2 2 . 2 7 3 5 2 4 5 8 1 4 3 12 9 6 4 5 5 3 9 6 7 10 Tactical Retreats 24 | . . . . . 2 . 4 . . . 2 . . . 3 . 1 . 3 . 1 . . 7 1 Traps | -11 -10 -10 -10 -9 -8 -8 -8 -7 -7 -6 -6 -6 -6 -5 -5 -5 -5 -4 -3 -3 -2 -2 -1 -1 -1 ------- Run | Scr Mat Min Exi Min Mat Gar Mat Fac Gar Fac Gar Fac Gar Fac Gar Fac Gar Fac Res Gar Res Gar Acc Gar Acc Traps Triggered 29 | . 2 . . . . 7 3 . . 1 . . 1 . . 2 2 . 1 1 . 2 1 6 . Indirectly . | . . . . . . . . . . . . . . . . . . . . . . . . . . Trap Hack Attempts . | . . . . . . . . . . . . . . . . . . . . . . . . . . Triggered . | . . . . . . . . . . . . . . . . . . . . . . . . . . Disarmed . | . . . . . . . . . . . . . . . . . . . . . . . . . . Reprogrammed . | . . . . . . . . . . . . . . . . . . . . . . . . . . Reused . | . . . . . . . . . . . . . . . . . . . . . . . . . . Traps Extracted . | . . . . . . . . . . . . . . . . . . . . . . . . . . Installed . | . . . . . . . . . . . . . . . . . . . . . . . . . . Triggered . | . . . . . . . . . . . . . . . . . . . . . . . . . . Machines | -11 -10 -10 -10 -9 -8 -8 -8 -7 -7 -6 -6 -6 -6 -5 -5 -5 -5 -4 -3 -3 -2 -2 -1 -1 -1 ---------- Run | Scr Mat Min Exi Min Mat Gar Mat Fac Gar Fac Gar Fac Gar Fac Gar Fac Gar Fac Res Gar Res Gar Acc Gar Acc Machines Disabled 65 | . . 1 . . 1 4 2 2 2 4 4 . 8 1 4 4 6 . . 4 . 2 2 5 9 Max in Single Turn 2 | . . 1 . . 1 1 2 1 1 1 1 . 1 1 1 . 1 . . 1 . 1 1 1 1 Garrison Access 1 | . . . . . . . . . . . . . . . . . . 1 . . . . . . . Garrison Relay 33 | . . . . . . 3 . . 1 . 3 . 7 . 4 . 5 . . 4 . 2 . 4 . Machines Sabotaged . | . . . . . . . . . . . . . . . . . . . . . . . . . . Garrisons Compromised . | . . . . . . . . . . . . . . . . . . . . . . . . . . Overloaded Fab Kills . | . . . . . . . . . . . . . . . . . . . . . . . . . . Hacking | -11 -10 -10 -10 -9 -8 -8 -8 -7 -7 -6 -6 -6 -6 -5 -5 -5 -5 -4 -3 -3 -2 -2 -1 -1 -1 --------- Run | Scr Mat Min Exi Min Mat Gar Mat Fac Gar Fac Gar Fac Gar Fac Gar Fac Gar Fac Res Gar Res Gar Acc Gar Acc Machines Accessed 45 | . 1 . 2 . 3 3 2 3 1 6 1 1 1 3 2 1 2 2 2 3 1 2 1 2 . Terminals 31 | . 1 . . . 2 3 2 2 1 4 1 . 1 2 2 . 2 . 1 3 . 2 . 2 . Fabricators 2 | . . . . . . . . . . 1 . . . . . . . 1 . . . . . . . Repair Stations . | . . . . . . . . . . . . . . . . . . . . . . . . . . Recycling Units . | . . . . . . . . . . . . . . . . . . . . . . . . . . Scanalyzers . | . . . . . . . . . . . . . . . . . . . . . . . . . . Garrison Access 10 | . . . . . 1 . . 1 . 1 . 1 . 1 . 1 . 1 1 . 1 . 1 . . Total Hacks 80 | . 4 . 2 . 7 5 6 4 2 11 1 1 1 4 4 1 4 2 3 5 1 7 1 4 . Successful 33 | . 2 . 2 . 4 1 . 3 1 3 1 1 1 2 2 1 2 1 1 2 1 1 1 . . Failed 47 | . 2 . . . 3 4 6 1 1 8 . . . 2 2 . 2 1 2 3 . 6 . 4 . Catastrophic 11 | . . . . . . 1 1 1 . 4 . . . 1 . . 1 1 . . . . . 1 . Database Lockouts . | . . . . . . . . . . . . . . . . . . . . . . . . . . Manual 21 | . 3 . 1 . 4 . 6 1 . 6 . . . . . . . . . . . . . . . Terminals 64 | . 4 . . . 6 5 6 3 2 7 1 . 1 3 4 . 4 . 2 5 . 7 . 4 . Fabricators 4 | . . . . . . . . . . 3 . . . . . . . 1 . . . . . . . Repair Stations . | . . . . . . . . . . . . . . . . . . . . . . . . . . Recycling Units . | . . . . . . . . . . . . . . . . . . . . . . . . . . Scanalyzers . | . . . . . . . . . . . . . . . . . . . . . . . . . . Garrison Access 10 | . . . . . 1 . . 1 . 1 . 1 . 1 . 1 . 1 1 . 1 . 1 . . Terminal Hacks 22 | . 2 . 2 . 3 1 . 2 1 1 1 . 1 1 2 . 2 . . 2 . 1 . . . Record 1 | . . . 1 . . . . . . . . . . . . . . . . . . . . . . Robot Analysis 1 | . 1 . . . . . . . . . . . . . . . . . . . . . . . . Open Door 3 | . . . . . . . . . . . . . . . . . 1 . . 1 . 1 . . . Open DSF 2 | . . . . . . . . 1 . . . . . 1 . . . . . . . . . . . Emergency Access Points 5 | . . . . . . . . . 1 . . . 1 . 1 . 1 . . 1 . . . . . Unreport Threat 1 | . . . . . 1 . . . . . . . . . . . . . . . . . . . . Recall Reinforcements 1 | . . . . . 1 . . . . . . . . . . . . . . . . . . . . Hauler Manifests 1 | . 1 . . . . . . . . . . . . . . . . . . . . . . . . Zone Layout 3 | . . . . . 1 . . 1 . 1 . . . . . . . . . . . . . . . Garrison Registry 2 | . . . . . . 1 . . . . . . . . 1 . . . . . . . . . . Patrol Navigation 1 | . . . . . . . . . . . 1 . . . . . . . . . . . . . . EX-Prototype ID Bank 1 | . . . 1 . . . . . . . . . . . . . . . . . . . . . . Fabricator Hacks . | . . . . . . . . . . . . . . . . . . . . . . . . . . Repair Station Hacks . | . . . . . . . . . . . . . . . . . . . . . . . . . . Recycling Unit Hacks . | . . . . . . . . . . . . . . . . . . . . . . . . . . Scanalyzer . | . . . . . . . . . . . . . . . . . . . . . . . . . . Garrison Access Hacks 10 | . . . . . 1 . . 1 . 1 . 1 . 1 . 1 . 1 1 . 1 . 1 . . Unlock Access 9 | . . . . . 1 . . 1 . 1 . 1 . 1 . 1 . . 1 . 1 . 1 . . Seal Access 1 | . . . . . . . . . . . . . . . . . . 1 . . . . . . . Unauthorized Hacks 1 | . . . . . . . . . . 1 . . . . . . . . . . . . . . . Terminals 1 | . . . . . . . . . . 1 . . . . . . . . . . . . . . . Disrupt 1 | . . . . . . . . . . 1 . . . . . . . . . . . . . . . Fabricators . | . . . . . . . . . . . . . . . . . . . . . . . . . . Repair Stations . | . . . . . . . . . . . . . . . . . . . . . . . . . . Recycling Units . | . . . . . . . . . . . . . . . . . . . . . . . . . . Scanalyzers . | . . . . . . . . . . . . . . . . . . . . . . . . . . Garrison Access . | . . . . . . . . . . . . . . . . . . . . . . . . . . Data Cores Recovered . | . . . . . . . . . . . . . . . . . . . . . . . . . . Used . | . . . . . . . . . . . . . . . . . . . . . . . . . . Hacking Detections 32 | . . . . . 2 3 2 2 1 5 . . 1 3 2 . 1 1 1 2 1 2 1 2 . Full Trace Events . | . . . . . . . . . . . . . . . . . . . . . . . . . . Feedback Events . | . . . . . . . . . . . . . . . . . . . . . . . . . . Feedback Blocked . | . . . . . . . . . . . . . . . . . . . . . . . . . . Robot Schematics Acquired . | . . . . . . . . . . . . . . . . . . . . . . . . . . Robots Built . | . . . . . . . . . . . . . . . . . . . . . . . . . . Authchips . | . . . . . . . . . . . . . . . . . . . . . . . . . . Time . | . . . . . . . . . . . . . . . . . . . . . . . . . . Total Robot Build Rating . | . . . . . . . . . . . . . . . . . . . . . . . . . . Part Schematics Acquired . | . . . . . . . . . . . . . . . . . . . . . . . . . . Parts Built . | . . . . . . . . . . . . . . . . . . . . . . . . . . Authchips . | . . . . . . . . . . . . . . . . . . . . . . . . . . Time . | . . . . . . . . . . . . . . . . . . . . . . . . . . Total Part Build Rating . | . . . . . . . . . . . . . . . . . . . . . . . . . . Parts Repaired . | . . . . . . . . . . . . . . . . . . . . . . . . . . Time . | . . . . . . . . . . . . . . . . . . . . . . . . . . Parts Recycled . | . . . . . . . . . . . . . . . . . . . . . . . . . . Recycled Matter . | . . . . . . . . . . . . . . . . . . . . . . . . . . Retrieved Matter . | . . . . . . . . . . . . . . . . . . . . . . . . . . Retrieved Components . | . . . . . . . . . . . . . . . . . . . . . . . . . . Parts Scanalyzed . | . . . . . . . . . . . . . . . . . . . . . . . . . . Part Schematics Acquired . | . . . . . . . . . . . . . . . . . . . . . . . . . . Parts Damaged . | . . . . . . . . . . . . . . . . . . . . . . . . . . Bothacking | -11 -10 -10 -10 -9 -8 -8 -8 -7 -7 -6 -6 -6 -6 -5 -5 -5 -5 -4 -3 -3 -2 -2 -1 -1 -1 ------------ Run | Scr Mat Min Exi Min Mat Gar Mat Fac Gar Fac Gar Fac Gar Fac Gar Fac Gar Fac Res Gar Res Gar Acc Gar Acc Used RIF Installer 9 | . . . . . . 1 . . 1 . 1 . 1 . 1 . 1 . . 1 . 1 . 1 . Coupler Efficiency 1 | . . . . . . . . . 1 . . . . . . . . . . . . . . . . Command Fork 2 | . . . . . . . . . . . . . 1 . . . 1 . . . . . . . . Threat Obfuscator 2 | . . . . . . . . . . . 1 . . . . . . . . . . 1 . . . Zone Cloak 1 | . . . . . . . . . . . . . . . . . . . . . . . . 1 . Alert ID Control 1 | . . . . . . . . . . . . . . . . . . . . 1 . . . . . Structural Interface 1 | . . . . . . . . . . . . . . . 1 . . . . . . . . . . Robots Hacked 133 | . . . . . . . . 1 1 9 6 . 11 3 14 11 8 . . 17 . 18 21 10 3 Non-combat 10 | . . . . . . . . . . 1 . . . 2 . 3 . . . . . . 4 . . Combat 123 | . . . . . . . . 1 1 8 6 . 11 1 14 8 8 . . 17 . 18 17 10 3 Robot Hacks Applied 143 | . . . . . . . . 1 1 14 6 . 11 3 14 11 8 . . 17 . 19 24 11 3 parse_system 1 | . . . . . . . . . . . . . . . . . . . . . . 1 . . . drop_inventory 4 | . . . . . . . . . . . . . . . . 2 . . . . . . 2 . . purge_threat 6 | . . . . . . . . . . 4 . . . . . . . . . . . . 2 . . block_reporting 2 | . . . . . . . . . . 1 . . . . . . . . . . . . 1 . . map_route 4 | . . . . . . . . . . . . . . 2 . 1 . . . . . . 1 . . find_garrison 1 | . . . . . . . . . . 1 . . . . . . . . . . . . . . . mark_system 1 | . . . . . . . . . . . . . . . . . . . . . . . 1 . . amplify_resonance 1 | . . . . . . . . . . . . . . . . . . . . 1 . . . . . disable_weapons 3 | . . . . . . . . . . 1 . . . . 1 . . . . . . 1 . . . reboot_system 21 | . . . . . . . . . 1 1 . . 1 . 1 . 2 . . 6 . 5 . 4 . go_dormant 1 | . . . . . . . . . . . . . . . . . . . . . . . . . 1 overwrite_iff 34 | . . . . . . . . . . 2 4 . 3 . 9 4 2 . . 4 . 5 . . 1 formatsys_high 64 | . . . . . . . . 1 . 4 2 . 7 1 3 4 4 . . 6 . 7 17 7 1 Relay Couplers Released 142 | . . . . . . 13 . . 4 . 11 . 28 . 20 . 19 3 . 18 . 8 . 18 . Machine Destruction 138 | . . . . . . 13 . . 4 . 11 . 28 . 16 . 19 3 . 18 . 8 . 18 . Programmers 4 | . . . . . . . . . . . . . . . 4 . . . . . . . . . . Attached 61 | . . . . . . . . 1 . 4 2 . 5 2 4 3 3 . . 11 . 6 6 8 6 Fabnet Peak Effective % . | . . . . . . . . . . . . . . . . . . . . . . . . . . Robots Rewired 8 | . . . . . . . . . . . 1 . . . . . 2 . . . . 3 . 2 . Allies Hacked 8 | . . . . . . . . . . . . . . . . . . . . 2 . . 5 . 1 Hacks Repelled . | . . . . . . . . . . . . . . . . . . . . . . . . . . Allies | -11 -10 -10 -10 -9 -8 -8 -8 -7 -7 -6 -6 -6 -6 -5 -5 -5 -5 -4 -3 -3 -2 -2 -1 -1 -1 -------- Run | Scr Mat Min Exi Min Mat Gar Mat Fac Gar Fac Gar Fac Gar Fac Gar Fac Gar Fac Res Gar Res Gar Acc Gar Acc Total Allies 146 | . . . . . . . . 1 . 9 9 . 13 1 15 9 10 . . 15 . 24 25 10 5 Largest Group 16 | . . . . . . . . 1 1 4 4 . 6 3 2 4 3 2 . 5 . 12 16 5 3 Highest-Rated Group 1077 | . . . . . . . . 32 32 125 174 . 239 90 161 231 206 84 . 261 . 823 1077 296 349 Highest-Rated Ally 219 | . . . . . . . . 32 32 47 116 . 88 85 88 88 88 46 . 64 . 148 89 219 219 Total Orders 6 | . . . . . . . . . . . . . . . . . . . . 1 . 4 1 . . STAY 3 | . . . . . . . . . . . . . . . . . . . . 1 . 2 . . . ROAM 1 | . . . . . . . . . . . . . . . . . . . . . . . 1 . . FOLLOW 2 | . . . . . . . . . . . . . . . . . . . . . . 2 . . . Ally Attacks 826 | . . . . . . . . . 6 50 42 . 76 41 51 58 49 2 . 48 . 111 166 69 57 Total Damage 26235 | . . . . . . . . . 252 1217 1583 . 2024 859 1098 1260 1451 73 . 1578 . 2292 5676 2525 4347 Kills 166 | . . . . . . . . . 2 8 8 . 18 6 5 8 8 . . 8 . 16 36 15 28 Allies Corrupted 12 | . . . . . . . . . . . 1 . . . . . . . . 2 . . 8 . 1 Allies Melted 2 | . . . . . . . . . . . 1 . . . 1 . . . . . . . . . . Field Lobotomies 4 | . . . . . . . . . . . . . . . . . . . . . . 1 . . 3 Intel | -11 -10 -10 -10 -9 -8 -8 -8 -7 -7 -6 -6 -6 -6 -5 -5 -5 -5 -4 -3 -3 -2 -2 -1 -1 -1 ------- Run | Scr Mat Min Exi Min Mat Gar Mat Fac Gar Fac Gar Fac Gar Fac Gar Fac Gar Fac Res Gar Res Gar Acc Gar Acc Robot Analysis Total 1 | . 1 . . . . . . . . . . . . . . . . . . . . . . . . Derelict Logs Recovered 1 | . . 1 . . . . . . . . . . . . . . . . . . . . . . . Drone Launches . | . . . . . . . . . . . . . . . . . . . . . . . . . . Drone Recoveries . | . . . . . . . . . . . . . . . . . . . . . . . . . . Exploration | -11 -10 -10 -10 -9 -8 -8 -8 -7 -7 -6 -6 -6 -6 -5 -5 -5 -5 -4 -3 -3 -2 -2 -1 -1 -1 ------------- Run | Scr Mat Min Exi Min Mat Gar Mat Fac Gar Fac Gar Fac Gar Fac Gar Fac Gar Fac Res Gar Res Gar Acc Gar Acc Turns Passed 22481 | 80 325 439 462 138 1163 1310 1876 300 709 1651 1195 92 920 534 1445 1011 1310 461 321 1258 145 1191 1398 1593 1154 Spaces Moved 10811 | 46 182 254 287 55 385 490 659 119 365 768 639 58 485 304 631 398 693 238 121 575 113 784 807 725 630 Core 3 | 3 . . . . . . . . . . . . . . . . . . . . . . . . . Treads 7479 | 43 182 254 287 55 385 490 659 119 365 768 639 58 485 304 631 233 693 238 121 470 . . . . . Legs 3329 | . . . . . . . . . . . . . . . . 165 . . . 105 113 784 807 725 630 Wheels . | . . . . . . . . . . . . . . . . . . . . . . . . . . Hover . | . . . . . . . . . . . . . . . . . . . . . . . . . . Flight . | . . . . . . . . . . . . . . . . . . . . . . . . . . Fastest Speed 50 | 50 160 160 160 160 160 160 155 156 156 160 156 156 156 156 155 156 160 160 160 120 120 120 116 116 118 Average Speed 169 | 152 160 160 160 160 219 239 234 227 158 175 156 156 156 157 172 180 160 160 160 165 120 124 144 180 142 Slowest Speed 240 | 160 160 160 160 160 240 240 240 236 160 240 235 156 240 160 240 240 160 160 160 190 120 190 190 186 190 Overloaded Moves . | . . . . . . . . . . . . . . . . . . . . . . . . . . Propulsion Burnouts . | . . . . . . . . . . . . . . . . . . . . . . . . . . Robots Hopped . | . . . . . . . . . . . . . . . . . . . . . . . . . . Cave-ins Triggered . | . . . . . . . . . . . . . . . . . . . . . . . . . . Exploration Rate (%) 40 | 5 34 47 69 14 46 64 62 5 56 26 71 3 71 12 65 14 92 8 6 65 6 83 21 78 23 Regions Visited 25 Branch Regions 3 Pre-discovered Areas 1 | . . . 1 . . . . . . . . . . . . . . . . . . . . . . Known Exits Taken 10 | . . . . . 1 . 1 1 . 1 . 1 . 1 . 1 . . 1 . 1 . 1 . . Unknown Exits Taken 6 | 1 1 1 1 1 . . . . . . . . . . . . . 1 . . . . . . . Scrap Searched 1 | . . 1 . . . . . . . . . . . . . . . . . . . . . . . Spaces Dug 102 | . . . . . 2 . 14 . 4 21 3 1 4 3 . 2 . 13 1 1 2 4 8 3 16 Terrain Destroyed 751 | . . . . . 57 10 118 1 11 89 3 1 7 3 3 3 1 15 7 1 2 14 20 247 138 Melee 84 | . . . . . . . 14 . 4 8 3 1 4 3 . 2 . 13 1 1 2 4 8 . 16 Projectile 108 | . . . . . 2 . 31 1 . 27 . . 3 . 3 . 1 1 4 . . 10 12 12 1 AOE 555 | . . . . . 55 10 73 . 7 54 . . . . . . . . . . . . . 235 121 Terrain Rammed . | . . . . . . . . . . . . . . . . . . . . . . . . . . Walls Destroyed . | . . . . . . . . . . . . . . . . . . . . . . . . . . Machines Disabled . | . . . . . . . . . . . . . . . . . . . . . . . . . . Actions | -11 -10 -10 -10 -9 -8 -8 -8 -7 -7 -6 -6 -6 -6 -5 -5 -5 -5 -4 -3 -3 -2 -2 -1 -1 -1 --------- Run | Scr Mat Min Exi Min Mat Gar Mat Fac Gar Fac Gar Fac Gar Fac Gar Fac Gar Fac Res Gar Res Gar Acc Gar Acc Total 13413 | 53 199 267 291 76 609 580 875 136 449 965 752 58 577 347 820 602 838 275 178 763 116 932 973 910 772 Wait 716 | . . . . 4 138 29 108 . 20 80 39 . 11 9 20 81 37 7 9 46 . 5 37 18 18 Move 10792 | 45 181 253 286 54 385 489 658 119 364 768 638 57 484 304 630 398 692 237 121 574 112 783 807 724 629 Hop . | . . . . . . . . . . . . . . . . . . . . . . . . . . Pick Up 125 | 2 1 2 1 . 3 11 2 . 8 5 6 . 10 2 11 7 7 . 1 18 . 10 6 8 4 Fast Attach 114 | 6 3 . . . 6 3 9 2 2 1 5 . 4 5 11 8 1 2 . 11 . 14 3 15 3 Attach 114 | . . . 2 2 4 3 2 4 1 9 6 . 5 4 6 7 10 2 6 7 1 4 7 2 20 Detach 62 | . 2 . 2 . 3 3 3 2 . . 4 . 1 6 9 4 3 2 . 3 . 7 1 5 2 Swap 200 | . 1 . . . 13 7 18 . 15 26 4 . 5 3 20 17 11 1 . 6 . 16 13 15 9 Drop 138 | . 1 1 . . 7 3 8 2 10 5 1 . 3 4 11 18 4 2 1 11 . 18 8 16 4 Fire 831 | . 10 11 . 16 49 23 50 7 12 63 30 . 25 7 99 57 33 9 39 36 . 52 78 81 44 Melee 235 | . . . . . . 3 17 . 17 8 17 1 25 3 3 2 6 13 1 49 3 15 8 5 39 Ram . | . . . . . . . . . . . . . . . . . . . . . . . . . . Kick . | . . . . . . . . . . . . . . . . . . . . . . . . . . Crush 2 | . . . . . 1 . . . . . . . . . . 1 . . . . . . . . . Escape Stasis 32 | . . . . . . 6 . . . . . . . . . . . . . . . 5 . 21 . Rewire 52 | . . . . . . . . . . . 2 . 4 . . 2 34 . . 2 . 3 5 . . Trap . | . . . . . . . . . . . . . . . . . . . . . . . . . . Miscellaneous . | . . . . . . . . . . . . . . . . . . . . . . . . . . Route ------- -11/Scrapyard -10/Materials (discovered 2 exits: [*Mat] / [*Min]) -10/Mines (discovered 2 exits: [*Mat] / *Exi) -10/Exiles (discovered 2 exits: [*Min x2]) -9/Mines -8/Materials (discovered 2 exits: Fac / Gar) -8/Garrison (discovered 4 exits: *Mat x4) -8/Materials (discovered 2 exits: *Fac x2) -7/Factory -7/Garrison -6/Factory (discovered 3 exits: *Fac / [*Low] / Gar) -6/Garrison (discovered 3 exits: *Fac x3) -6/Factory -6/Garrison (discovered 3 exits: *Fac x3) -5/Factory (discovered 4 exits: Fac x2 / [Upp] / Gar) -5/Garrison (discovered 3 exits: *Fac x3) -5/Factory (discovered 3 exits: *Fac x2 / Gar) -5/Garrison (discovered 3 exits: *Fac x3) -4/Factory -3/Research -3/Garrison (discovered 2 exits: *Res / [*Res]) -2/Research -2/Garrison (discovered 2 exits: *Acc x2) -1/Access -1/Garrison (discovered 3 exits: [*Acc x3]) -1/Access To Epsilon Eridani History --------- Turn | Location | Event 20 | -11/Scrapyard | Discovered new exit (range 15) 81 | -11/Scrapyard | Entered Materials 316 | -10/Materials | Discovered new exit (range 15) 330 | -10/Materials | Build established: Mutant 380 | -10/Materials | Discovered new exit (range 16) 406 | -10/Materials | Entered Mines 472 | -10/Mines | Learned 8 Materials zone layouts 515 | -10/Mines | Found a damaged Exp. Sensor Array with a note attached 518 | -10/Mines | Found Prototype Device 528 | -10/Mines | Met a Derelict bent on vengeance 779 | -10/Mines | Discovered new exit (range 8) 838 | -10/Mines | Deemed a non-threat by the Exiles lab entrance 838 | -10/Mines | Discovered new exit (range 5) 845 | -10/Mines | Entered Exiles 867 | -10/Exiles | Discovered new exit (range 15) 890 | -10/Exiles | Met 8R-AWN 912 | -10/Exiles | Met EX-HEX 1005 | -10/Exiles | Met EX-DEC 1034 | -10/Exiles | Learned location of Zion (-6) 1064 | -10/Exiles | Met EX-BIN 1086 | -10/Exiles | Aligned with FarCom system 1088 | -10/Exiles | Given EX-Vault access code 1131 | -10/Exiles | Opened EX-Vault 1146 | -10/Exiles | Found Field Lobotomy Kit 1180 | -10/Exiles | Warned to stay clear of 0b10 Research branches 1286 | -10/Exiles | Discovered new exit (range 14) 1307 | -10/Exiles | Left Exiles lab with Field Lobotomy Kit 1307 | -10/Exiles | Entered Mines 1352 | -9/Mines | Core integrity fell below 50% 1403 | -9/Mines | Discovered new exit (range 11) 1445 | -9/Mines | Entered Materials 1445 | -8/Materials | Evolved 4 slots: Propulsion x1, Utility x2, Weapon x1 1446 | -8/Materials | Identified exit to Factory 2244 | -8/Materials | Garrison activated, responded to threat 2546 | -8/Materials | Build established: Scavenger-Skirmisher 2608 | -8/Materials | Identified exit to Garrison 2608 | -8/Materials | Entered Garrison 2738 | -8/Garrison | Triggered checkpoint 2838 | -8/Garrison | Triggered checkpoint 2936 | -8/Garrison | Discovered new exit (range 12) 2972 | -8/Garrison | Triggered checkpoint 3057 | -8/Garrison | Garrison Relay disabled 3168 | -8/Garrison | Triggered checkpoint 3216 | -8/Garrison | Discovered new exit (range 10) 3268 | -8/Garrison | Triggered checkpoint 3288 | -8/Garrison | Garrison Relay disabled 3322 | -8/Garrison | Build established: Scavenger-Mutant 3590 | -8/Garrison | Discovered new exit (range 46) 3590 | -8/Garrison | Discovered new exit (range 49) 3590 | -8/Garrison | Discovered new exit (range 23) 3590 | -8/Garrison | Discovered new exit (range 58) 3622 | -8/Garrison | Triggered checkpoint 3685 | -8/Garrison | Garrison Relay disabled 3877 | -8/Garrison | Installed Relay Interface Framework 3918 | -8/Garrison | Entered Materials 4430 | -8/Materials | Discovered exit to Factory (range 16) 5170 | -8/Materials | Build established: Skirmisher 5518 | -8/Materials | First assault squad dispatched 5728 | -8/Materials | Discovered exit to Factory (range 16) 5752 | -8/Materials | Core integrity fell below 50% 5794 | -8/Materials | Entered Factory 5794 | -7/Factory | Evolved 2 slots: Propulsion x1, Utility x1 5823 | -7/Factory | Identified exit to DSF 6050 | -7/Factory | Garrison activated, responded to threat 6094 | -7/Factory | Identified exit to Garrison 6094 | -7/Factory | Entered Garrison 6094 | -7/Garrison | Warlord forces raided the area 6094 | -7/Garrison | Accompanied by 1 ally 6132 | -7/Garrison | Triggered checkpoint 6162 | -7/Garrison | Triggered checkpoint 6253 | -7/Garrison | Garrison Relay disabled 6264 | -7/Garrison | Triggered checkpoint 6294 | -7/Garrison | Triggered checkpoint 6335 | -7/Garrison | Warlord forces retreated 6378 | -7/Garrison | Triggered checkpoint 6477 | -7/Garrison | Expanded RIF knowledge: Coupler Efficiency 6590 | -7/Garrison | Triggered checkpoint 6769 | -7/Garrison | Discovered new exit (range 12) 6803 | -7/Garrison | Entered Factory 6803 | -6/Factory | Accompanied by 1 ally 6803 | -6/Factory | Evolved 2 slots: Utility x2 6858 | -6/Factory | Discovered new exit (range 15) 6982 | -6/Factory | Build established: Bothacker-Mutant 7024 | -6/Factory | Allied Derelicts emerged from ambush trap array 7600 | -6/Factory | Discovered new exit (range 15) 7615 | -6/Factory | Destroyed 9 combat bots 8251 | -6/Factory | Lost 5 parts (1p1n1u2w) 8454 | -6/Factory | Identified exit to Garrison 8454 | -6/Factory | Entered Garrison 8476 | -6/Garrison | Triggered checkpoint 8485 | -6/Garrison | Garrison Relay disabled 8640 | -6/Garrison | Triggered checkpoint 8725 | -6/Garrison | Destroyed 8 combat bots 8725 | -6/Garrison | Lost 3 parts (1n1u1w) 8874 | -6/Garrison | Discovered new exit (range 12) 8900 | -6/Garrison | Found embedded Infiltrators 8974 | -6/Garrison | Triggered checkpoint 9042 | -6/Garrison | Triggered checkpoint 9142 | -6/Garrison | Triggered checkpoint 9199 | -6/Garrison | Expanded RIF knowledge: Threat Obfuscation 9236 | -6/Garrison | Triggered checkpoint 9251 | -6/Garrison | Garrison Relay disabled 9326 | -6/Garrison | Discovered new exit (range 15) 9440 | -6/Garrison | Discovered new exit (range 8) 9460 | -6/Garrison | Spotted B-90 Cyclops 9475 | -6/Garrison | Rewired B-86 Titan 9570 | -6/Garrison | Garrison Relay disabled 9649 | -6/Garrison | Entered Factory 9732 | -6/Factory | Identified exit to Garrison 9741 | -6/Factory | Entered Garrison 9756 | -6/Garrison | Triggered checkpoint 9765 | -6/Garrison | Found embedded Infiltrators 9834 | -6/Garrison | Garrison Relay disabled 9860 | -6/Garrison | Garrison Relay disabled 9866 | -6/Garrison | Garrison Relay disabled 9889 | -6/Garrison | Garrison Relay disabled 9902 | -6/Garrison | Garrison Relay disabled 10040 | -6/Garrison | Triggered checkpoint 10090 | -6/Garrison | Triggered checkpoint 10124 | -6/Garrison | Garrison Relay disabled 10176 | -6/Garrison | Discovered new exit (range 10) 10224 | -6/Garrison | Expanded RIF knowledge: Command Fork 10296 | -6/Garrison | Triggered checkpoint 10301 | -6/Garrison | Triggered checkpoint 10363 | -6/Garrison | Discovered new exit (range 9) 10513 | -6/Garrison | Build established: Botlord-Mutant 10544 | -6/Garrison | Triggered checkpoint 10606 | -6/Garrison | Garrison Relay disabled 10651 | -6/Garrison | Discovered new exit (range 3) 10661 | -6/Garrison | Entered Factory 10661 | -5/Factory | Accompanied by 3 allies 10661 | -5/Factory | Evolved 2 slots: Utility x2 10802 | -5/Factory | Spotted B-75 Beast 10809 | -5/Factory | Assimilated Beast 6a with formatsys_high 11013 | -5/Factory | Discovered new exit (range 108) 11013 | -5/Factory | Discovered new exit (range 114) 11022 | -5/Factory | Discovered new exit (range 107) 11191 | -5/Factory | Identified exit to Garrison 11195 | -5/Factory | Entered Garrison 11253 | -5/Garrison | Spotted B-75 Beast 11334 | -5/Garrison | Destroyed B-75 Beast 11457 | -5/Garrison | Found Enh. Force Lance 11475 | -5/Garrison | Found Antimissile System 11558 | -5/Garrison | Triggered checkpoint 11558 | -5/Garrison | Garrison Relay disabled 11657 | -5/Garrison | Triggered checkpoint 11657 | -5/Garrison | Triggered checkpoint 11755 | -5/Garrison | Triggered checkpoint 11777 | -5/Garrison | Triggered checkpoint 12008 | -5/Garrison | Discovered new exit (range 10) 12028 | -5/Garrison | Discovered new exit (range 49) 12028 | -5/Garrison | Discovered new exit (range 6) 12028 | -5/Garrison | Discovered new exit (range 75) 12200 | -5/Garrison | Triggered checkpoint 12248 | -5/Garrison | Expanded RIF knowledge: Structural Interface 12267 | -5/Garrison | Garrison Relay disabled 12456 | -5/Garrison | Garrison Relay disabled 12530 | -5/Garrison | Found embedded Infiltrators 12576 | -5/Garrison | Garrison Relay disabled 12640 | -5/Garrison | Entered Factory 12640 | -5/Factory | Accompanied by 2 allies 12945 | -5/Factory | Discovered new exit (range 11) 13092 | -5/Factory | Discovered new exit (range 9) 13651 | -5/Factory | Identified exit to Garrison 13651 | -5/Factory | Entered Garrison 13680 | -5/Garrison | Spotted Executioner 13680 | -5/Garrison | Spotted Executioner 13759 | -5/Garrison | Garrison Relay disabled 13850 | -5/Garrison | Triggered checkpoint 13863 | -5/Garrison | Triggered checkpoint 13983 | -5/Garrison | Expanded RIF knowledge: Command Fork 14002 | -5/Garrison | Triggered checkpoint 14018 | -5/Garrison | Garrison Relay disabled 14074 | -5/Garrison | Discovered new exit (range 14) 14250 | -5/Garrison | Found embedded Infiltrators 14255 | -5/Garrison | Discovered new exit (range 12) 14302 | -5/Garrison | Triggered checkpoint 14334 | -5/Garrison | Triggered checkpoint 14407 | -5/Garrison | Spotted B-75 Beast 14540 | -5/Garrison | Discovered new exit (range 10) 14609 | -5/Garrison | Garrison Relay disabled 14626 | -5/Garrison | Triggered checkpoint 14721 | -5/Garrison | Build established: Mutant 14812 | -5/Garrison | Triggered checkpoint 14883 | -5/Garrison | Garrison Relay disabled 14961 | -5/Garrison | Entered Factory 14961 | -4/Factory | Accompanied by 2 allies 14961 | -4/Factory | Evolved 2 slots: Power x1, Utility x1 15361 | -4/Factory | Build established: Scavenger-Mutant 15392 | -4/Factory | Discovered new exit (range 11) 15422 | -4/Factory | Entered Research 15422 | -3/Research | Evolved 2 slots: Utility x2 15564 | -3/Research | Garrison activated, responded to threat 15743 | -3/Research | Identified exit to Garrison 15743 | -3/Research | Entered Garrison 15750 | -3/Garrison | Triggered checkpoint 15753 | -3/Garrison | Lost 5 parts (2n2u1w) 15847 | -3/Garrison | Lost 4 parts (3u1w) 15896 | -3/Garrison | Found Relay Coupler [Proto] 15898 | -3/Garrison | Found Relay Coupler [Proto] 15901 | -3/Garrison | Found Relay Coupler [Proto] 15903 | -3/Garrison | Found Relay Coupler [Proto] 15982 | -3/Garrison | Triggered checkpoint 16067 | -3/Garrison | Garrison Relay disabled 16137 | -3/Garrison | Build established: Botlord-Mutant 16164 | -3/Garrison | Triggered checkpoint 16164 | -3/Garrison | Triggered checkpoint 16166 | -3/Garrison | Triggered checkpoint 16329 | -3/Garrison | Rescued a captive Derelict 16330 | -3/Garrison | Rescued a captive Derelict 16341 | -3/Garrison | Garrison Relay disabled 16582 | -3/Garrison | Garrison Relay disabled 16618 | -3/Garrison | Triggered checkpoint 16657 | -3/Garrison | Expanded RIF knowledge: Alert ID Control 16762 | -3/Garrison | Triggered checkpoint 16790 | -3/Garrison | Discovered new exit (range 3) 16917 | -3/Garrison | Garrison Relay disabled 16983 | -3/Garrison | Discovered new exit (range 11) 17001 | -3/Garrison | Entered Research 17001 | -2/Research | Evolved 2 slots: Propulsion x1, Utility x1 17139 | -2/Research | Identified exit to Garrison 17146 | -2/Research | Entered Garrison 17158 | -2/Garrison | Triggered checkpoint 17475 | -2/Garrison | Spotted B-90 Cyclops 17480 | -2/Garrison | Assimilated B-90 Cyclops with FLK Orb 17488 | -2/Garrison | Triggered checkpoint 17494 | -2/Garrison | Triggered checkpoint 17509 | -2/Garrison | Triggered checkpoint 17512 | -2/Garrison | Triggered checkpoint 17816 | -2/Garrison | Garrison Relay disabled 17848 | -2/Garrison | Triggered checkpoint 17862 | -2/Garrison | Triggered checkpoint 17878 | -2/Garrison | Triggered checkpoint 17908 | -2/Garrison | Expanded RIF knowledge: Threat Obfuscation 18062 | -2/Garrison | Garrison Relay disabled 18098 | -2/Garrison | Triggered checkpoint 18147 | -2/Garrison | Discovered new exit (range 2) 18267 | -2/Garrison | Discovered new exit (range 10) 18283 | -2/Garrison | Rescued a captive Derelict 18337 | -2/Garrison | Entered Access 18337 | -1/Access | Accompanied by 12 allies 18337 | -1/Access | Evolved 2 slots: Utility x1, Weapon x1 18920 | -1/Access | Found Exp. Target Analyzer 19484 | -1/Access | Found Prototype Launcher 19484 | -1/Access | Identified Ragnarok Missile Launcher 19684 | -1/Access | Found Quantum Capacitor 19735 | -1/Access | Identified exit to Garrison 19735 | -1/Access | Entered Garrison 19735 | -1/Garrison | Accompanied by 5 allies 19888 | -1/Garrison | Triggered checkpoint 19960 | -1/Garrison | P-80 Master assimilated allied Enforcer 10m 20027 | -1/Garrison | Garrison Relay disabled 20075 | -1/Garrison | Spotted B-99 Colossus 20077 | -1/Garrison | Assimilated Colossus 10a with formatsys_high 20088 | -1/Garrison | Triggered checkpoint 20097 | -1/Garrison | Triggered checkpoint 20100 | -1/Garrison | Triggered checkpoint 20158 | -1/Garrison | Found Prototype Ballistic Gun 20158 | -1/Garrison | Identified Multirail 20206 | -1/Garrison | Triggered checkpoint 20326 | -1/Garrison | Discovered new exit (range 5) 20368 | -1/Garrison | Triggered checkpoint 20428 | -1/Garrison | Garrison Relay disabled 20681 | -1/Garrison | Rewired Striker 20685 | -1/Garrison | Rewired Striker 20731 | -1/Garrison | Garrison Relay disabled 20760 | -1/Garrison | Discovered new exit (range 12) 20764 | -1/Garrison | Triggered checkpoint 20817 | -1/Garrison | Garrison Relay disabled 20899 | -1/Garrison | Spotted B-75 Beast 20962 | -1/Garrison | Spotted B-99 Colossus 20963 | -1/Garrison | Heavy support dispatched to Access 21248 | -1/Garrison | Expanded RIF knowledge: Zone Cloak 21295 | -1/Garrison | Discovered new exit (range 10) 21328 | -1/Garrison | Entered Access 21328 | -1/Access | Accompanied by 1 ally 21703 | -1/Access | Garrison activated, responded to threat 21828 | -1/Access | First assault squad dispatched 22017 | -1/Access | System corruption reached 10% 22235 | -1/Access | Build established: Scavenger-Mutant 22245 | -1/Access | Spotted B-99 Colossus 22250 | -1/Access | Assimilated B-99 Colossus with FLK Orb 22258 | -1/Access | Assimilated L-61 Swordsman with FLK Orb 22262 | -1/Access | Garrison activated, responded to threat 22262 | -1/Access | Assimilated P-80 Master with FLK Orb 22279 | -1/Access | P-80 Master assimilated allied Swordsman 10a 22436 | -1/Access | Spotted B-99 Colossus 22436 | -1/Access | Spotted B-99 Colossus 22465 | -1/Access | Discovered new exit (range 5) 22482 | *** | Escaped! Last Messages --------------- 22453_ R7ULRAWBQNUAB9OJ%FJ |TXLGM4XP>AH8DJD 22454_ Penetrated by Slug. 22454_ Slug penetrates Sealed Heavy Doors. 22454_ Penetrated by Slug. 22454_ Slug penetrates Sealed Heavy Doors. 22458_ Penetrated by Slug. 22458_ Centrium Medium Armor Plating destroyed. 22458_ Slug penetrates Sealed Heavy Doors. 22458_ Penetrated by Slug. 22458_ Slug penetrates Sealed Heavy Doors. 22461_ Knocked back. 22461_ Slug penetrates Sealed Heavy Doors. 22461_ Penetrated by Slug. 22461_ Com. HERF Cannon destroyed. 22461_ Penetrated by Slug. 22461_ Slug penetrates Sealed Barrier. 22465_ Main Access Shell breached. 22465_ EXIT=FOUND 22470_ System corrupted: Matter fused (-9). [Achievement: One Last FU] Map ----- +----------------------------------------------------+ | ??????#############+###? #?????????????????????? | | ????? #? #?????????????????????? | | ?????? #? #?????????????????????? | | ????? # #?????????????????????? | | ????? # #?????????????????????? | | ???? " #?????????????????????? | | ???????? # #?????????????????????? | | ???????????T"""" " #?????????????????????? | | ???????????"""""" " % #?????????????????????? | | ????????????######"##"" ####?????????????##/??? | | ???????????????## ## % #??????????? ??? | | ??????????????## ### #???????? ??? | | ??????????##### ##?#% #?????? ??? | | ????####### "##??# #?????# ??? | | ????# #### BB BB #?????# ??? | | ????# ! ## BB BB #?????#** ??? | | ????# ## %% #????##** +?? | | ????# ##"%""""""""#????""** #?? | | ????# # #?" "???????????""" #?? | | ????# # ##?" "????????????T +?? | | ????# ##"%""""""""#????"" #?? | | ????# ### % #????"" #?? | | ######### ##?# " """" #???### ### | | # ### " "??????#" # | | ####### ## " "" "??????#"" # | | ######## #?????## # " "@ "??????#"" # | | ???????# #??????### " "??????#"" # | | ???????# #????????# """"""??????#"" " # | | ???????# #????????# ????????????"T """ # | | ???????# #????????# ???????????#"" """ # | | ???????# #????????""""""""""""???#"" " + | | ???????# #????????#"" #???#"" # | | ???????# #????????#"" #???#"" # | | ???????# #????????#"" #???#" # | | ???????# #????????#T #???### " #!! | | ???????# #????????#"" #?????# """ !! | | ??????## ##???###?#"" #?????# | | ??????# #####"###"" ####### # | | ??????+ =[ pp = # | | ??????# ! !%* # | | ??????# ##=####################### ## | | ??????####### #?????????????????????# ![ | | ????????????# #?????????????????????# %=% ! | | ????????????# #?????????????????????"= [! !%! | | ????????????# #???????????????????? =%!* %!! | | ????????????! ??????????????????? #%*%= | | ???????????? ??????????????????####%%% % = | | ???????????? ?????????????????????%%[% [%= | | ???????????? ????????????????????### ""!%" ## | | ???????????? ??????????????????????#"""T"""#? | +----------------------------------------------------+ Best States ------------- Heat Dissipation 118 Energy Generation 45 Energy Capacity 440 Matter Stores 300 Matter Capacity 300 Sight Range 16 Terrain Scan Density 10 Armor Coverage 1800 Resistance: EM 20 Core Shielding 20 Point Defense Rating 240 Phase Shifting 15 Evasion (%) 70 Targeting Accuracy 8 Target Analysis 14 Recoil Reduction 4 Particle Charging 15 Kinecelleration 40 Relay Coupler Types 6 Relay Coupler Value 241 Item Schematics ----------------- None Robot Schematics ------------------ None Fabricated ------------ Nothing Alien Tech Used ----------------- None Achievements -------------- One Last FU Challenges ------------ None Game ------ Seed LobotomySiegeStabilizer Manual? 0 Play Time 03:08:16 Cumulative 256.2 hours Start 2022.07.07 @ 20:21:25 End 2022.07.07 @ 23:41:50 Sessions 1 Manual Loads 0 Difficulty Rogue Special Mode None Game No. 355 Rogue 268 Adventurer 87 Explorer 0 Win Type 0 Total 7 Types 4/0/2/1/0/0/0/0/0 Lore% 70 Gallery% 79 Achievement% 68 Wizard Run 0 Options --------- ASCII 0 Keyboard 1 Movement Numpad Keybinds 0 Fullscreen 1 Font 18/Smallcaps Map View 76x50 Tactical HUD 1 Map Filters NONE Filters NONE Steam 1 RUN: eecb4684-0bdb-4df9-a67b-a647e2afd664